Cogmind - Beta 10.2 @@@ ROGUE MODE // 2021.12.09 @ 01:24:34 // Winter2019/RPGLIKE Player: FontPeg Result: Destroyed by L-31 Rogue with Katana Performance ------------- Evolutions (1) 500 Regions Visited (3) 600 Robots Destroyed (24) 120 Value Destroyed (535) 535 Prototype IDs (0) 0 Alien Tech Used (0) 0 Bonus (0) 0 TOTAL SCORE: 1755 Bonus ------- None Cogmind --------- Core Integrity 0/750 Matter 240/300 Energy 263/265 System Corruption 0% Temperature Cool (0) Movement Flying (34) Location -9/Materials Parts ------- > --- POWER (1) -------- Improved Ion Engine > --- PROPULSION (3) --- Flight Unit Flight Unit Flight Unit > --- UTILITY (3) ------ Signal Interpreter > --- WEAPON (2) ------- Light Assault Rifle Heavy Assault Rifle > --- INVENTORY (2) ---- Ion Engine Flight Unit Peak State ------------ > --- POWER ------------ Improved Ion Engine > --- PROPULSION ------- Flight Unit Flight Unit Flight Unit > --- UTILITY ---------- Signal Interpreter Targeting Computer > --- WEAPON ----------- Medium Laser Small Laser > --- INVENTORY -------- Ion Engine [Rating: 9] Favorites ----------- Power Ion Engine Engine Ion Engine Propulsion Flight Unit Flight Unit Flight Unit Utility Targeting Computer Processor Targeting Computer Weapon Small Laser Energy Gun Small Laser Ballistic Gun Light Assault Rifle Build | -11 -10 -10 -9 ------- Run | Scr Mat Min Mat Slots Evolved 5 | 3 . . 2 Power . | . . . . Propulsion 2 | 1 . . 1 Utility 2 | 1 . . 1 Weapon 1 | 1 . . . Parts Attached 19 | 3 5 5 6 Power 3 | 1 1 . 1 Engine 3 | 1 1 . 1 Core . | . . . . Reactor . | . . . . Propulsion 9 | . 2 5 2 Treads . | . . . . Leg . | . . . . Wheel . | . . . . Hover . | . . . . Flight 9 | . 2 5 2 Utility 2 | . 2 . . Device . | . . . . Storage . | . . . . Processor 2 | . 2 . . Hackware . | . . . . Protection . | . . . . Artifact . | . . . . Weapon 5 | 2 . . 3 Energy Gun 3 | 2 . . 1 Energy Cannon . | . . . . Ballistic Gun 2 | . . . 2 Ballistic Cannon . | . . . . Launcher . | . . . . Special Weapon . | . . . . Impact Weapon . | . . . . Slashing Weapon . | . . . . Piercing Weapon . | . . . . Special Melee Weapon . | . . . . Unidentified Prototypes . | . . . . Parts Lost 4 | . . 1 3 Power . | . . . . Propulsion . | . . . . Utility 1 | . . . 1 Weapon 3 | . . 1 2 Highest Loss Streak 3 | . . 1 3 Average Slot Usage (%) 87 | . 82 98 80 Engine 13 | . 14 14 11 Flight 27 | . 26 28 28 Processor 19 | . 12 28 19 Energy Gun 24 | . 28 26 12 Ballistic Gun 1 | . . . 7 Naked Turns . | . . . . Heaviest Build 11 | 5 7 7 11 Greatest Support 17 | 8 13 13 17 Greatest Overweight (x) . | . . . . Average Overweight (x) . | . . . . Largest Inventory Capacity 2 | 2 2 2 2 Average Capacity 1 | 1 2 2 2 Most Carried 2 | 2 2 2 2 Average Carried 1 | 1 1 1 1 Final Capacity 2 | 2 2 2 2 Final Carried 2 | 2 2 2 2 Class Distribution -------------------- 79% | Mutant 13% | Hacker-Mutant 6% | Scavenger-Mutant Dominant Class ---------------- Mutant | -10/Materials Mutant | -10/Mines Hacker-Mutant | -9/Materials Resources | -11 -10 -10 -9 ----------- Run | Scr Mat Min Mat Matter Collected 370 | 230 50 50 40 Remotely . | . . . . Salvage Created 830 | . 335 158 337 Parts 46 | . 16 13 17 Haulers Intercepted . | . . . . Recyclers Shooed . | . . . . Parts Field Recycled . | . . . . Retrieved Matter . | . . . . Parts Self-Destructed . | . . . . Prevented . | . . . . Kills | -11 -10 -10 -9 ------- Run | Scr Mat Min Mat Combat Hostiles Destroyed 20 | . 5 8 7 Guns 20 | . 5 8 7 Classes Destroyed 5 | . 3 1 1 Worker 2 | . 2 . . Watcher 2 | . 2 . . Swarmer 9 | . . 6 3 Grunt 10 | . 5 2 3 Sentry 1 | . . . 1 Best Kill Streak 6 | . 6 3 4 Combat Bots Only 4 | . 3 3 4 Max Kills in Single Turn 2 | . 2 2 1 Gunslinging 1 | . . 1 . Exploded . | . . . . Melee . | . . . . Uniques/NPCs Destroyed . | . . . . Combat | -11 -10 -10 -9 -------- Run | Scr Mat Min Mat Damage Taken 1223 | . 268 383 572 Core 990 | . 221 295 474 Absorbed by Shields . | . . . . Redirected to Core 786 | . 143 286 357 Core Remaining (%) 80 | 100 . 61 . Volleys Fired 71 | . 28 19 24 Largest 2 | . 2 2 2 Hottest 90 | . 80 80 90 Shots Fired 141 | . 56 37 48 Gun 141 | . 56 37 48 Cannon . | . . . . Launcher . | . . . . Special . | . . . . Kinetic 20 | . . . 20 Thermal 121 | . 56 37 28 Explosive . | . . . . Electromagnetic . | . . . . Robot Hit Streak 15 | . 6 12 15 Robot Miss Streak 7 | . 2 7 4 Penetration Max . | . . . . Secondary Targets 7 | . 2 4 1 Max Gunslinging Chain 1 | . 1 1 1 Shots Hit Robots 91 | . 35 22 34 Core Hits 42 | . 17 11 14 Critical Hits . | . . . . Critical Kills . | . . . . Critical Parts Destroyed . | . . . . Melee Attacks . | . . . . Impact . | . . . . Slashing . | . . . . Piercing . | . . . . Sneak Attacks . | . . . . Combat Hostiles . | . . . . Follow-up Attacks . | . . . . Damage Inflicted 1038 | . 411 258 369 Guns 1038 | . 411 258 369 Cannons . | . . . . Explosions . | . . . . Melee . | . . . . Ramming . | . . . . Kinetic 96 | . . . 96 Thermal 942 | . 411 258 273 Explosive . | . . . . Electromagnetic . | . . . . Impact . | . . . . Slashing . | . . . . Piercing . | . . . . Highest Corruption . | . . . . Average Corruption . | . . . . Corruption Purged . | . . . . Overload Shots . | . . . . Overflow Damage . | . . . . Projectiles . | . . . . Explosions . | . . . . Melee . | . . . . Knockbacks . | . . . . Impact . | . . . . Kinetic . | . . . . Secondary . | . . . . Self-Inflicted Damage . | . . . . Shots . | . . . . Rammed . | . . . . Targets Rammed . | . . . . Kicked . | . . . . Crushed . | . . . . Highest Temperature 344 | . 344 214 . Average Temperature 121 | . 139 90 . Received Heat Transfer 342 | . 150 93 99 Effects 1 | . 1 . . Energy Bleed 1 | . 1 . . Siege Activations . | . . . . Robots Corrupted . | . . . . Combat Hostiles . | . . . . Parts Fried . | . . . . Impact Corruptions . | . . . . Robots Melted . | . . . . Combat Hostiles . | . . . . Parts Melted 1 | . 1 . . Heat Transferred 2219 | . 925 575 719 Parts Sabotaged . | . . . . Parts Stolen . | . . . . Parts Stripped . | . . . . Power Chain Reactions . | . . . . Missiles Intercepted . | . . . . Alert | -11 -10 -10 -9 ------- Run | Scr Mat Min Mat Peak Influence 326 | . 225 312 326 Initial 121 | . . 87 121 Average 143 | . 57 218 249 Maximum Alert Level 1 | . 1 1 1 Low Security (%) 65 | 100 93 44 27 Level 1 34 | . 6 55 72 Level 2 . | . . . . Level 3 . | . . . . Level 4 . | . . . . Level 5 . | . . . . High Security . | . . . . Max Security . | . . . . Squads Dispatched 2 | . 2 . . Investigation 2 | . 2 . . Extermination . | . . . . Reinforcement . | . . . . Assault . | . . . . Garrison . | . . . . Intercept . | . . . . Construction Impeded . | . . . . Haulers Reinforced . | . . . . Stealth | -11 -10 -10 -9 --------- Run | Scr Mat Min Mat Distress Signals . | . . . . Communications Jammed . | . . . . Distress Signals . | . . . . Times Spotted 32 | . 11 10 11 Peak Tracking Total 5 | . 5 3 5 Tactical Retreats 2 | . . 1 1 Traps | -11 -10 -10 -9 ------- Run | Scr Mat Min Mat Traps Triggered . | . . . . Indirectly . | . . . . Trap Hack Attempts . | . . . . Triggered . | . . . . Disarmed . | . . . . Reprogrammed . | . . . . Reused . | . . . . Traps Extracted . | . . . . Installed . | . . . . Triggered . | . . . . Machines | -11 -10 -10 -9 ---------- Run | Scr Mat Min Mat Machines Disabled . | . . . . Max in Single Turn . | . . . . Machines Sabotaged . | . . . . Garrisons Compromised . | . . . . Overloaded Fab Kills . | . . . . Fab Network Shutdowns . | . . . . Hacking | -11 -10 -10 -9 --------- Run | Scr Mat Min Mat Machines Accessed 2 | . 2 . . Terminals 2 | . 2 . . Fabricators . | . . . . Repair Stations . | . . . . Recycling Units . | . . . . Scanalyzers . | . . . . Garrison Access . | . . . . Total Hacks 7 | . 7 . . Successful 2 | . 2 . . Failed 5 | . 5 . . Catastrophic . | . . . . Database Lockouts . | . . . . Manual 3 | . 3 . . Terminals 7 | . 7 . . Fabricators . | . . . . Repair Stations . | . . . . Recycling Units . | . . . . Scanalyzers . | . . . . Garrison Access . | . . . . Terminal Hacks 2 | . 2 . . Branch Access Points 1 | . 1 . . Terminal Index 1 | . 1 . . Fabricator Hacks . | . . . . Repair Station Hacks . | . . . . Recycling Unit Hacks . | . . . . Scanalyzer . | . . . . Garrison Access Hacks . | . . . . Unauthorized Hacks . | . . . . Terminals . | . . . . Fabricators . | . . . . Repair Stations . | . . . . Recycling Units . | . . . . Scanalyzers . | . . . . Garrison Access . | . . . . Data Cores Recovered . | . . . . Used . | . . . . Hacking Detections 2 | . 2 . . Full Trace Events 2 | . 2 . . Feedback Events . | . . . . Feedback Blocked . | . . . . Robot Schematics Acquired . | . . . . Robots Built . | . . . . Matter . | . . . . Time . | . . . . Total Robot Build Rating . | . . . . Part Schematics Acquired . | . . . . Parts Built . | . . . . Matter . | . . . . Time . | . . . . Total Part Build Rating . | . . . . Parts Repaired . | . . . . Time . | . . . . Parts Recycled . | . . . . Recycled Matter . | . . . . Retrieved Matter . | . . . . Retrieved Components . | . . . . Parts Scanalyzed . | . . . . Part Schematics Acquired . | . . . . Parts Damaged . | . . . . Bothacking | -11 -10 -10 -9 ------------ Run | Scr Mat Min Mat Used RIF Installer . | . . . . Robots Hacked . | . . . . Non-combat . | . . . . Combat . | . . . . Robot Hacks Applied . | . . . . Relay Couplers Released . | . . . . Robots Rewired . | . . . . Allies Hacked . | . . . . Hacks Repelled . | . . . . Allies | -11 -10 -10 -9 -------- Run | Scr Mat Min Mat Total Allies . | . . . . Largest Group . | . . . . Highest-Rated Group . | . . . . Highest-Rated Ally . | . . . . Total Orders . | . . . . Ally Attacks . | . . . . Total Damage . | . . . . Kills . | . . . . Allies Corrupted . | . . . . Allies Melted . | . . . . Intel | -11 -10 -10 -9 ------- Run | Scr Mat Min Mat Robot Analysis Total . | . . . . Derelict Logs Recovered 2 | . . 2 . Drone Launches . | . . . . Drone Recoveries . | . . . . Exploration | -11 -10 -10 -9 ------------- Run | Scr Mat Min Mat Turns Passed 871 | 28 392 314 137 Spaces Moved 1032 | 41 273 627 91 Core 80 | 41 39 . . Treads . | . . . . Legs . | . . . . Wheels . | . . . . Hover . | . . . . Flight 952 | . 234 627 91 Fastest Speed 34 | 50 37 37 34 Average Speed 37 | 50 38 37 35 Slowest Speed 50 | 50 50 37 37 Overloaded Moves . | . . . . Propulsion Burnouts . | . . . . Robots Hopped 1 | . 1 . . Cave-ins Triggered . | . . . . Exploration Rate (%) 35 | 3 35 91 14 Regions Visited 3 Branch Regions 1 Pre-discovered Areas 1 | . . 1 . Known Exits Taken 2 | . 1 1 . Unknown Exits Taken 1 | 1 . . . Scrap Searched 1 | . . 1 . Spaces Dug . | . . . . Terrain Destroyed . | . . . . Melee . | . . . . Projectile . | . . . . AOE . | . . . . Terrain Rammed . | . . . . Walls Destroyed . | . . . . Machines Disabled . | . . . . Actions | -11 -10 -10 -9 --------- Run | Scr Mat Min Mat Total 1369 | 46 499 673 151 Wait 223 | 1 187 8 27 Move 1027 | 40 270 626 91 Hop 1 | . 1 . . Pick Up 7 | 2 1 2 2 Fast Attach 9 | 3 4 . 2 Attach 2 | . . . 2 Detach . | . . . . Swap 8 | . 1 5 2 Drop 8 | . 1 6 1 Fire 71 | . 28 19 24 Melee . | . . . . Ram . | . . . . Kick . | . . . . Crush . | . . . . Escape Stasis . | . . . . Rewire . | . . . . Trap . | . . . . Miscellaneous 13 | . 6 7 . Route ------- -11/Scrapyard -10/Materials -10/Mines (discovered 2 exits: *Mat x2) -9/Materials (discovered 1 exit: [*Sto]) History --------- Turn | Location | Event 4 | -11/Scrapyard | Upgraded with Propulsion slot (x1) 4 | -11/Scrapyard | Upgraded with Utility slot (x1) 4 | -11/Scrapyard | Upgraded with Weapon slot (x1) 6 | -11/Scrapyard | Discovered new exit (range 15) 29 | -11/Scrapyard | Entered Materials 312 | -10/Materials | Build established: Mutant 415 | -10/Materials | Identified exit to Mines 421 | -10/Materials | Entered Mines 439 | -10/Mines | Reached level 2 479 | -10/Mines | Learned Materials emergency access door positions 519 | -10/Mines | Discovered new exit (range 6) 521 | -10/Mines | Identified exit to Materials 580 | -10/Mines | A weapon hastily lodged in a ceiling crevice suddenly fell to the ground 718 | -10/Mines | Learned location of Zion (-6) 719 | -10/Mines | Discovered exit to Materials (range 7) 735 | -10/Mines | Entered Materials 737 | -9/Materials | Reached level 3 747 | -9/Materials | Upgraded with Utility slot (x1) 770 | -9/Materials | Discovered new exit (range 13) 782 | -9/Materials | Core integrity fell below 50% 803 | -9/Materials | Reached level 4 812 | -9/Materials | Upgraded with Propulsion slot (x1) 815 | -9/Materials | Core integrity fell below 20% 845 | -9/Materials | Lost 3 parts (1u2w) 872 | -9/Materials | Destroyed by L-31 Rogue with Katana Last Messages --------------- 00800_ G-34 Mercenary destroyed. 00803_ Reached level 4. 00803_ G-34 Mercenary destroyed. 00809_ Y-45 Defender destroyed. 00812_ Upgraded: Propulsion Slot (+1) 00812_ Upgraded: TH Resistance % (+5) 00813_ Acquired 10 matter. 00814_ Fusion Modulator explodes. 00814_ Sml. Laser destroyed. 00814_ Fusion Modulator explodes. 00814_ Targeting Computer destroyed. 00814_ Med. Laser destroyed. 00814_ U-05 Engineer builds a Wall. 00819_ Acquired Flight Unit. 00822_ Acquired 10 matter. 00824_ Acquired Lgt. Assault Rifle. 00828_ Acquired Hvy. Assault Rifle. 00830_ Upgraded: KI Damage % (+5) 00830_ Upgraded: TH Damage % (+5) 00841_ U-05 Engineer lays Concrete. Map ----- +----------------------------------------------------+ | ?????????????????????????????????????????????????? | | ?????????????????????????????????????????????????? | | ?????????????????????????????????????????????????? | | ?????????????????????????????????????????????????? | | ?????????????????????????????????????????????????? | | ?????????????????????????????????????????????????? | | ?????????????????????????????????????????????????? | | ?????? ??????????????????????????????????????????? | | ???? ?????????????#####??????????????????????? | | ???? #???????????# #?????????????????????? | | ???# < #???????????# ?????????????????????? | | ???? #???????????# ! ?????????????????????? | | ???? ????????????? ??????????????????????? | | ##??# #????????????? ??????????????????????? | | # ### #?????????????# #??????????????????????? | | """"# #?????????????# #??????????????????????? | | "# #?????????????# #??????????????????????? | | "#?????????????# #??????????????????????? | | " "%#?????????????# #??????????????????????? | | ##????????????# #??????????????????????? | | ##########+### ################???????? | | %= ??????? | | % ??????? | | * ??????? | | ### #############l##### ??????? | | * ## ????????# @ #??????????????????? | | "" ## #???????# #??????????????????? | | "# ### #???????# +??????????????????? | | !="# #?## #???????# #??????????????????? | | """"# %*#??#####???????# #??????????????????? | | "%## #??????????????# #??????????????????? | | ## ## #??????????????########??????????????????? | | ?# ## #????????????????????????????????????????? | | ?# ## #????????????????????????????????????????? | | ?# ## #?+??????????????????????????????????????? | | ?# ## #????????????????????????????????????????? | | ?# ## #????????????????????????????????????????? | | ?# ## #????????????????????????????????????????? | | ?# ## #????????????????????????????????????????? | | ##+## #????????????????????????????????????????? | | # +????????????????????????????????????????? | | # #????????????????????????????????????????? | | + #????????????????????????????????????????? | | # #????????????????????????????????????????? | | # #????????????????????????????????????????? | | # #????????????????????????????????????????? | | #########????????????????????????????????????????? | | ?????????????????????????????????????????????????? | | ?????????????????????????????????????????????????? | | ?????????????????????????????????????????????????? | +----------------------------------------------------+ Best States ------------- Heat Dissipation 55 Energy Generation 12 Energy Capacity 265 Matter Stores 300 Matter Capacity 300 Sight Range 16 Terrain Scan Density 10 Resistance: KI 5 Resistance: TH 5 Evasion (%) 63 Targeting Accuracy 5 Offensive Hacking 15 Defensive Hacking 10 Item Schematics ----------------- None Robot Schematics ------------------ None Fabricated ------------ Nothing Alien Tech Used ----------------- None Achievements -------------- None Challenges ------------ None RPGLIKE | -11 -10 -10 -9 --------- Run | Scr Mat Min Mat Levels Raised 3 | . . 1 2 XP Earned 7675 | 3000 700 1600 2375 XP Spent 7105 | 2950 . 1505 2650 Upgrades 25 | 8 . 11 6 Propulsion Slot 2 | 1 . . 1 Utility Slot 2 | 1 . . 1 Weapon Slot 1 | 1 . . . Core Integrity 3 | . . 3 . Heat Dissipation 5 | . . 5 . Mass Support 1 | 1 . . . Inventory Capacity 2 | 2 . . . Hack Attack % 3 | 2 . 1 . Hack Defense % 2 | . . 1 1 KI Resistance % 1 | . . 1 . TH Resistance % 1 | . . . 1 KI Damage % 1 | . . . 1 TH Damage % 1 | . . . 1 Protomatter Created 95 | . 39 56 . Integrity Restored 243 | . 111 132 . Core 230 | . 98 132 . Parts 13 | . 13 . . Protomatter Decayed 13 | . 1 12 . Game ------ Seed BlastGravitonNanovents Manual? 0 Play Time 00:14:35 Cumulative 94.5 hours Start 2021.12.09 @ 01:11:17 End 2021.12.09 @ 01:24:34 Sessions 1 Manual Loads 0 Difficulty Rogue Special Mode Winter2019/RPGLIKE Game No. 137 Rogue 137 Adventurer 0 Explorer 0 Win Type - Total 1 Types 1/0/0/0/0/0/0/0/0 Lore% 43 Gallery% 56 Achievement% 44 Wizard Run 0 Options --------- ASCII 0 Keyboard 0 Movement Mouse Keybinds 0 Fullscreen 2 Font 18/X11 Map View 76x50 Tactical HUD 1 Map Filters NONE Filters NONE Steam 1 RUN: 76bd0b67-f810-4059-ba67-4b624c64f800